bitfinex/quotes_ETHUSD_20220119
["timestamp","ask_amount","ask_price","bid_price","bid_amount"]
[1642614098168,0.00454739,3125.2,3124.8,0.800109]
[1642614098362,0.00454739,3125.2,3124.7,2.57635205]
[1642614098363,3.7994,3125.8,3124.7,1.77610205]
[1642614098573,7.511,3125.7,3124.9,0.00113684]
[1642614098769,0.15983,3125.6,3124.9,0.00113684]
[1642614099168,1.16267509,3125.5,3124.9,0.00113684]
[1642614099368,4.13017272,3125.4,3124.9,0.00113684]
[1642614099574,4.13187799,3125.4,3124.9,0.00113684]
[1642614099771,0.00113685,3125.3,3124.9,0.00113684]
[1642614101823,3.0,3125.2,3124.8,1.55134684]
[1642614102021,3.00170527,3125.2,3124.8,1.55134684]
[1642614102222,3.00170527,3125.2,3124.5,3.7761]
[1642614102223,0.80144684,3125.1,3124.7,1.60057]
[1642614102823,1.31155837,3124.8,3124.7,1.60057]
[1642614103024,1.31155837,3124.8,3124.3,1.2219]
[1642614103229,3.96627576,3124.7,3123.9,0.00232369]
[1642614103626,3.96627576,3124.7,3124.0,0.00511581]
[1642614103627,4.26627576,3124.7,3124.0,0.00511581]
[1642614104628,8.38923,3124.7,3124.0,0.00511581]
[1642614104829,8.38923,3124.7,3124.2,1.60089]
[1642614105282,8.38923,3124.7,3124.3,0.00341054]
[1642614105670,11.64619143,3124.7,3124.3,0.00341054]
[1642614105872,1.15983,3124.6,3124.3,0.00341054]
[1642614106075,4.45052,3124.4,3124.3,0.00341054]
[1642614106472,5.45052,3124.4,3124.3,0.00341054]
[1642614106770,7.5888,3124.7,3124.3,0.00341054]
[1642614106971,7.8888,3124.7,3124.3,0.80382054]
[1642614107271,7.8888,3124.7,3124.4,0.00284212]
[1642614107672,8.68922,3124.7,3124.4,0.00284212]
[1642614107869,7.8888,3124.7,3124.4,0.00284212]
[1642614108070,1.0,3124.6,3124.4,0.00284212]
[1642614108271,3.35983,3124.5,3124.4,0.00284212]
[1642614108674,4.16031,3124.5,3124.4,0.00284212]
[1642614109019,0.15983,3124.5,3124.4,0.00284212]
[1642614109224,7.5888,3124.7,3124.4,0.00284212]
[1642614109826,4.65338003,3124.5,3124.4,0.00284212]
[1642614110125,4.65338003,3124.5,3124.0,1.60092]
[1642614110126,4.65338003,3124.5,3124.1,0.00454739]
[1642614110325,1.40338003,3124.5,3124.1,0.00454739]
[1642614110527,1.10044,3124.6,3124.2,0.80045]
[1642614110926,0.80044,3124.6,3124.3,0.00341054]
[1642614111126,0.80044,3124.6,3124.3,1.93802612]
[1642614111332,1.10044,3124.6,3124.3,0.00341054]
[1642614111529,1.10044,3124.6,3124.4,0.00284212]
[1642614111726,1.10044,3124.6,3124.3,0.00341054]
[1642614111929,0.3,3124.6,3124.3,0.00341054]
[1642614112795,0.3,3124.6,3124.3,1.19629163]
[1642614113077,0.3,3124.6,3122.9,3.83447528]
[1642614113078,0.15983,3124.4,3122.9,3.83447528]
[1642614113280,0.15983,3124.4,3122.6,2.5309295]
[1642614113281,0.01252346,3123.5,3122.6,2.5309295]
[1642614113478,0.459,3123.4,3123.1,1.60141]
[1642614113774,0.15983,3123.2,3122.6,2.5309295]
[1642614113985,0.80088,3123.0,3122.6,2.5309295]
[1642614114182,0.40905346,3123.5,3122.7,0.00909478]
[1642614114183,7.2162,3123.2,3122.7,0.00909478]
[1642614114380,0.459,3123.3,3122.7,0.00909478]
[1642614114579,5.6577,3123.7,3122.9,0.0125525]
[1642614114980,6.45835,3123.7,3123.0,0.00738951]
[1642614115581,6.75835,3123.7,3123.0,0.00738951]
[1642614115779,6.45835,3123.7,3123.0,0.00738951]
[1642614115984,2.85523533,3124.6,3123.0,0.00738951]
[1642614115986,1.60115,3124.3,3123.1,0.8006]
[1642614116184,6.44804,3124.4,3123.1,0.8006]
[1642614116185,1.25951,3124.4,3123.1,0.8006]
[1642614116382,0.00113684,3124.5,3123.7,1.43298219]
[1642614116826,0.00113684,3124.5,3123.8,0.00284212]
[1642614117226,0.00113684,3124.5,3123.8,0.30284212]
[1642614117427,0.00113684,3124.5,3123.8,0.00284212]
[1642614117626,0.00113684,3124.5,3123.9,0.0022737]
[1642614117928,0.00113684,3124.5,3124.0,1.45168919]
[1642614118128,0.80048,3124.3,3124.0,1.45168919]
[1642614118327,0.80048,3124.3,3124.1,0.00113685]
[1642614119134,0.00113684,3124.5,3123.6,0.80045]
[1642614119534,0.00113684,3124.5,3123.7,0.00341054]
[1642614119731,0.00113684,3124.5,3123.9,1.16501115]
[1642614120133,0.00113684,3124.5,3124.0,0.00170527]
[1642614120398,0.00113684,3124.5,3124.0,2.00822685]
[1642614120598,0.00113684,3124.5,3124.0,4.60875685]
[1642614120809,0.00113684,3124.5,3124.1,0.00113685]
[1642614121705,0.00113684,3124.5,3124.2,0.80022]
[1642614121901,0.00113684,3124.5,3124.2,1.10022]
[1642614124329,0.00113684,3124.5,3124.3,0.80021]
[1642614124524,0.00113684,3124.5,3124.4,0.3]
[1642614125125,1.9453422,3126.0,3124.4,0.3]
[1642614125325,7.51573,3126.2,3124.7,1.59988]
[1642614125524,7.51573,3126.2,3125.6,1.20311147]
[1642614125923,7.3559,3126.2,3124.8,2.36102399]
[1642614126127,7.3559,3126.2,3125.6,0.3]
[1642614126128,2.96198118,3126.1,3125.6,0.3]
[1642614126325,2.96198118,3126.1,3125.1,3.03948433]
[1642614126524,7.3559,3126.2,3125.1,3.03948433]
[1642614126525,0.00852636,3126.0,3125.1,3.33948433]
[1642614126931,0.00795793,3125.9,3125.5,1.15000614]
[1642614127124,0.00795793,3125.9,3125.5,1.45000614]
[1642614127326,0.00738951,3125.8,3125.5,1.75000614]
[1642614127771,0.00682108,3125.7,3125.5,1.75000614]
[1642614128169,5.69439685,3126.6,3125.5,0.6]
[1642614128170,0.00625266,3125.6,3125.5,0.6]
[1642614128471,0.00625266,3125.6,3125.2,1.1967]
[1642614128669,0.00625266,3125.6,3125.5,0.3]
[1642614128870,0.00568424,3125.5,3125.2,2.4967]
[1642614129076,0.00568424,3125.5,3124.2,2.44333144]
[1642614129077,0.00625266,3125.6,3124.4,0.1279]
[1642614129277,0.00625266,3125.6,3124.5,1.1718]
[1642614129278,0.00511581,3125.4,3124.5,1.1718]
[1642614129478,0.00568424,3125.5,3124.2,3.7826]
[1642614129674,1.44417145,3125.6,3124.2,3.7826]
[1642614129675,0.00454739,3125.3,3124.2,4.58285]
[1642614129876,0.00511581,3125.4,3124.3,0.00113685]
[1642614130077,0.00397897,3125.2,3124.7,1.50115987]
[1642614130282,0.00454739,3125.3,3124.7,1.50115987]
[1642614130477,0.00341054,3125.1,3124.7,1.50115987]
[1642614130678,0.00397897,3125.2,3124.3,1.19723685]
[1642614130979,0.16324054,3125.1,3124.3,0.00113685]
[1642614131177,0.80037,3124.8,3124.3,0.00113685]
[1642614131376,0.46241054,3125.1,3123.9,1.18414247]
[1642614131377,0.00284212,3125.0,3123.9,1.18414247]
[1642614131658,0.459,3125.1,3124.0,0.00284211]
[1642614131659,0.00113685,3124.7,3124.0,0.00284211]
[1642614131844,0.0022737,3124.9,3124.2,1.22628634]
[1642614132052,1.01203447,3125.3,3124.2,2.82671634]
[1642614132053,0.00284212,3125.0,3124.2,2.82671634]
[1642614132248,0.00170527,3124.8,3124.3,1.10136684]
[1642614132449,8.59227,3125.6,3124.3,1.10136684]
[1642614132450,0.0022737,3124.9,3124.3,2.10136684]
[1642614132647,0.00113685,3124.7,3124.3,2.10136684]
[1642614132849,0.00170527,3124.8,3124.5,1.24428238]
[1642614133047,1.29941607,3125.5,3124.6,1.64344995]
[1642614133247,1.29402393,3125.4,3124.7,1.64344995]
[1642614133449,7.7921,3125.6,3124.8,1.34344995]
[1642614133648,1.29973236,3125.5,3124.8,1.34344995]
[1642614133848,1.60620424,3125.5,3124.8,1.34344995]
[1642614134055,1.29852829,3125.4,3124.4,1.2259]
[1642614134254,1.29852829,3125.4,3124.5,1.34392331]
[1642614134255,1.45324248,3125.3,3124.5,1.34392331]
[1642614134454,1.29341248,3125.2,3124.3,0.00113684]
[1642614134658,1.29739145,3125.2,3124.3,0.00113684]
[1642614134854,0.00341054,3125.1,3124.4,1.09466509]
[1642614135055,0.00341054,3125.1,3124.5,1.34395739]
[1642614135270,0.00284212,3125.0,3124.2,0.00170527]
[1642614135474,0.00284212,3125.0,3124.2,1.15589148]
[1642614135676,0.0022737,3124.9,3124.3,1.34391472]
[1642614135875,0.0022737,3124.9,3124.3,1.34505156]
[1642614136074,0.00170527,3124.8,3124.3,2.51273255]
[1642614136274,0.00170527,3124.8,3124.4,1.34391472]
[1642614136477,3.60372901,3125.5,3124.3,1.34505156]
[1642614136478,0.00113685,3124.7,3124.3,1.34505156]
[1642614136673,0.00113685,3124.7,3124.3,1.64505156]
[1642614136873,0.00511581,3125.4,3124.4,1.34430312]
[1642614137075,1.2922201,3125.3,3124.4,1.34430312]
[1642614137280,0.00454739,3125.3,3124.4,1.34430312]
[1642614137476,9.39253,3125.6,3124.4,1.34430312]
[1642614137477,0.00397897,3125.2,3124.4,1.34430312]
[1642614137678,0.00397897,3125.2,3124.6,0.80017]
[1642614137882,1.93244906,3126.1,3124.7,2.95004545]
[1642614137883,0.00341054,3125.1,3124.7,2.95004545]
[1642614138077,0.00341054,3125.1,3124.8,2.34430312]
[1642614138276,0.00284212,3125.0,3124.8,2.64430312]
[1642614138678,1.29413976,3126.0,3125.2,1.42702179]
[1642614138882,7.2279,3126.1,3125.3,1.34430312]
[1642614139124,0.00795793,3125.9,3125.3,1.34430312]
[1642614139329,0.00795793,3125.9,3125.5,0.79999]
[1642614139525,7.2279,3126.1,3125.5,1.09999]
[1642614139526,0.00738951,3125.8,3125.5,1.09999]
[1642614139931,0.00682108,3125.7,3125.5,1.09999]
[1642614140128,0.00682108,3125.7,3125.5,0.3]
[1642614140428,7.2279,3126.1,3125.0,0.80007]
[1642614140429,0.00625266,3125.6,3125.0,0.80007]
[1642614140629,0.00625266,3125.6,3125.0,1.60017]
[1642614140827,7.2279,3126.1,3125.1,1.34214426]
[1642614140828,0.00568424,3125.5,3125.1,1.34214426]
[1642614141228,0.00511581,3125.4,3125.1,5.54196426]
[1642614141427,0.00511581,3125.4,3125.2,1.34214426]
[1642614141728,7.2279,3126.1,3125.5,0.79999]
[1642614142127,0.00852636,3126.0,3125.5,0.79999]
[1642614142330,1.30970033,3125.9,3125.5,0.79999]
[1642614142531,1.30970033,3125.9,3125.1,3.49982]
[1642614142532,0.00795793,3125.9,3125.1,3.49982]
[1642614142775,0.00738951,3125.8,3125.1,3.49982]
[1642614142979,0.00738951,3125.8,3125.1,3.19982]
[1642614143178,0.00682108,3125.7,3125.1,3.19982]
[1642614143579,0.80008,3125.9,3124.8,1.60018]
[1642614143580,0.96623266,3125.6,3124.8,1.60018]
[1642614143782,2.96198118,3125.5,3124.7,1.6003]
[1642614143982,0.00568424,3125.5,3124.0,4.0]
[1642614144284,2.31244066,3125.4,3124.3,1.60065]
[1642614144484,1.18698539,3125.4,3124.4,1.32474191]
[1642614144684,1.31180635,3125.3,3124.4,1.32474191]
[1642614144889,1.30725896,3125.2,3124.4,1.32474191]
[1642614145089,0.80039,3125.0,3124.4,1.32474191]
[1642614145284,0.80039,3125.0,3124.3,0.3]
[1642614145486,0.0022737,3124.9,3124.4,0.3]
[1642614145685,0.0022737,3124.9,3124.3,0.80035]
[1642614145886,0.00170527,3124.8,3124.1,0.00227369]
[1642614146086,0.80039,3124.7,3124.1,2.92826785]
[1642614146288,0.80152685,3124.7,3124.2,1.32532416]
[1642614146525,0.80152685,3124.7,3124.2,0.00170527]
[1642614146726,0.80152685,3124.7,3124.3,0.00113684]
[1642614146927,0.80152685,3124.7,3124.2,1.32713152]
[1642614147125,0.00113685,3124.7,3124.2,2.12744152]
[1642614147325,0.00113685,3124.7,3124.3,1.32656309]
[1642614148125,0.00113685,3124.7,3124.4,1.24104087]
[1642614148329,0.00113685,3124.7,3124.6,1.2023686]
[1642614148525,0.00113685,3124.7,3124.5,1.32542625]
[1642614148526,0.00113685,3124.7,3124.5,0.3]
[1642614148726,0.00113685,3124.7,3124.4,0.80025]
[1642614148934,0.00113685,3124.7,3124.3,0.00113684]
[1642614149132,1.03403685,3124.7,3124.3,0.00113684]
[1642614149531,1.03403685,3124.7,3124.3,0.80149684]
[1642614149731,1.03403685,3124.7,3124.3,0.80036]
[1642614149931,1.03403685,3124.7,3124.3,1.10036]
[1642614150378,1.03403685,3124.7,3124.3,0.3]
[1642614150574,1.03403685,3124.7,3124.1,0.00227369]
[1642614150777,1.03403685,3124.7,3124.1,1.32525211]
[1642614150974,1.60101,3124.6,3124.1,1.32525211]
[1642614151177,1.60101,3124.6,3124.2,0.00170527]
[1642614151979,1.60101,3124.6,3124.1,0.00227369]
[1642614152180,2.74131,3124.6,3124.1,0.00227369]
[1642614152779,4.19723036,3124.6,3124.1,0.00227369]
[1642614152982,2.30738759,3124.5,3124.1,0.00227369]
[1642614153181,1.459,3124.5,3124.1,0.00227369]
[1642614153381,1.30677555,3124.4,3124.1,0.00227369]
[1642614153582,5.95983,3124.2,3123.3,1.60108]
[1642614153784,5.95983,3124.2,3123.1,1.60125]
[1642614153785,11.66723432,3124.1,3123.1,1.60125]
[1642614154082,11.66723432,3124.1,3122.6,2.5309295]
[1642614154083,1.30091201,3123.7,3123.4,0.00397896]
[1642614154278,3.32956517,3123.6,3123.4,0.00397896]
[1642614154480,3.32956517,3123.6,3123.3,0.00454739]
[1642614154879,3.32956517,3123.6,3122.7,0.00795793]
[1642614155084,3.32956517,3123.6,3122.8,1.32264491]
[1642614155085,1.96062,3123.5,3122.8,1.32264491]
[1642614155280,3.37905512,3123.4,3122.8,1.32264491]
[1642614155484,3.37905512,3123.4,3122.9,0.00682108]
[1642614156081,1.60175,3123.3,3122.7,0.00795793]
[1642614156285,3.06197604,3123.2,3122.8,1.32250441]
[1642614156583,1.60175,3123.3,3122.9,0.00682108]
[1642614156981,3.6174368,3123.5,3123.0,1.62158145]
[1642614156982,0.15983,3123.5,3123.0,1.62158145]
[1642614157182,8.33204122,3123.9,3123.1,1.32149981]
[1642614157183,7.3172,3123.9,3123.1,1.32149981]
[1642614157384,7.3172,3123.9,3123.1,1.32718405]
[1642614157584,7.3172,3123.9,3123.2,1.32661562]
[1642614157781,7.3172,3123.9,3123.3,1.30528692]
[1642614157985,7.3172,3123.9,3123.4,1.32141084]
[1642614158183,7.3172,3123.9,3123.3,0.30454739]
[1642614158382,0.80063,3123.8,3123.5,0.00341054]
[1642614158583,1.96046,3123.8,3123.2,0.3]
[1642614158784,0.13483,3123.6,3123.2,0.3]
[1642614158981,0.13483,3123.6,3122.6,2.5309295]
[1642614158982,0.13483,3123.6,3123.3,0.00113685]
[1642614159185,1.13483,3123.6,3123.3,0.00113685]
[1642614159383,1.13483,3123.6,3122.7,1.32152127]
[1642614159384,0.13483,3123.6,3122.7,1.62606866]
[1642614159584,0.00113685,3123.7,3122.8,1.32550024]
[1642614159786,0.00113685,3123.7,3122.9,1.32152127]
[1642614159787,0.8009,3123.5,3122.9,1.32152127]
[1642614159983,0.8009,3123.5,3123.0,0.3]
[1642614160184,0.8009,3123.5,3123.0,0.30284212]
[1642614160385,0.8009,3123.5,3123.1,0.0022737]
[1642614160985,8.72698809,3123.7,3123.0,1.62057019]
[1642614160986,5.62843685,3123.7,3123.0,1.62057019]
[1642614161188,5.62843685,3123.7,3123.1,1.32057019]
[1642614161189,0.00113685,3123.7,3123.1,1.32057019]
[1642614161386,0.00113685,3123.7,3123.1,1.32284389]
[1642614161628,0.00113685,3123.7,3123.2,0.00170527]
[1642614161829,0.00113685,3123.7,3123.2,2.67916791]
[1642614162028,0.00113685,3123.7,3123.3,2.91568711]
[1642614162227,0.00113685,3123.7,3123.2,1.10234527]
[1642614162228,3.00450247,3123.7,3123.2,1.10234527]
[1642614162433,1.60148,3123.6,3123.2,0.00170527]
[1642614162831,0.80067,3123.6,3123.2,0.00170527]
[1642614163028,0.00113685,3123.7,3123.2,0.80233527]
[1642614163235,0.00113685,3123.7,3123.3,0.3]
[1642614164034,0.80067,3123.6,3123.3,0.3]
[1642614165032,0.80067,3123.6,3123.3,1.59723385]
[1642614166076,0.00113685,3123.7,3123.3,3.19837385]
[1642614166278,0.00113685,3123.7,3123.5,0.80054]
[1642614166477,0.00113685,3123.7,3123.5,1.10054]
[1642614167277,0.80176685,3123.7,3123.5,1.10054]
[1642614167678,0.00113685,3123.7,3123.5,1.10054]
[1642614168279,0.00113685,3123.7,3123.5,0.3]
[1642614168482,0.00113685,3123.7,3123.2,0.60170527]
[1642614168680,0.80181685,3123.7,3123.2,0.00170527]
[1642614169935,0.80181685,3123.7,3123.1,0.0022737]
[1642614170136,0.80181685,3123.7,3122.7,0.00454739]
[1642614170337,0.13483,3123.6,3122.7,0.00454739]
[1642614170535,0.80079,3123.4,3122.7,0.00454739]
[1642614170738,1.83139,3123.4,3122.7,0.00454739]
[1642614172034,0.80079,3123.4,3122.7,0.00454739]
[1642614172237,0.80079,3123.4,3122.7,2.32656115]
[1642614172785,0.00113685,3123.7,3122.8,2.11488519]
[1642614172981,0.00113685,3123.7,3122.9,1.31013622]
[1642614172982,0.80178685,3123.7,3122.9,1.31013622]
[1642614173175,0.80178685,3123.7,3122.9,3.21474676]
[1642614173176,0.00113685,3123.7,3122.9,3.21474676]
[1642614173378,0.00113685,3123.7,3123.0,1.31297834]
[1642614173780,0.00113685,3123.7,3123.4,1.31598001]
[1642614175181,0.00113685,3123.7,3123.4,4.30637286]
[1642614175379,0.00113685,3123.7,3123.4,2.41655001]
[1642614175581,0.00113685,3123.7,3123.5,2.1103117]
[1642614175781,0.00113685,3123.7,3123.6,10.07173288]
[1642614175980,3.7023,3124.6,3123.7,5.8]
[1642614176184,3.7023,3124.6,3124.3,1.27693027]
[1642614176383,12.7468,3124.9,3124.3,1.27693027]
[1642614176384,0.00454738,3124.5,3124.3,1.27693027]
[1642614176633,0.00454738,3124.5,3124.3,1.10032]
[1642614176834,0.00397896,3124.4,3124.3,1.10032]
[1642614177236,0.00397896,3124.4,3124.3,2.70096]
[1642614177837,0.00397896,3124.4,3124.3,0.3]
[1642614178037,0.00397896,3124.4,3124.2,1.10031]
[1642614178439,0.00341054,3124.3,3124.2,2.49227118]
[1642614180145,0.00341054,3124.3,3124.2,1.10031]
[1642614180581,0.00341054,3124.3,3124.2,0.3]
[1642614180783,0.00341054,3124.3,3124.1,0.3]
[1642614180987,0.00341054,3124.3,3123.9,1.10049]
[1642614181189,0.00284211,3124.2,3123.9,1.10049]
[1642614181589,0.00227369,3124.1,3123.9,1.10049]
[1642614181990,0.00170527,3124.0,3123.9,1.10049]
[1642614184734,0.00170527,3124.0,3123.9,2.5812395]
[1642614184933,0.00170527,3124.0,3123.9,2.8812395]
[1642614185333,0.00170527,3124.0,3123.9,5.18714697]
[1642614185934,7.4748,3124.9,3124.5,1.39471732]
[1642614186136,7.4748,3124.9,3124.6,0.80025]
[1642614186336,7.4748,3124.9,3124.7,0.3]
[1642614186934,7.4748,3124.9,3124.0,2.40065]
[1642614187134,7.4748,3124.9,3124.6,0.80032]
[1642614187334,0.80028,3125.2,3124.6,0.80032]
[1642614187335,0.80028,3125.2,3124.7,1.70987485]
[1642614187537,0.459,3125.5,3124.7,2.00987485]
[1642614187538,7.2919,3125.5,3124.7,2.00987485]
[1642614187787,2.07601527,3126.2,3124.8,5.3]
[1642614187986,4.27723601,3126.1,3124.9,0.80003]
[1642614188182,4.27723601,3126.1,3125.2,1.26832077]
[1642614188183,0.00170527,3125.4,3125.2,1.26832077]
[1642614188586,0.00113685,3125.3,3125.2,3.10879739]
[1642614190087,1.21639168,3125.8,3125.2,3.10879739]
[1642614190388,0.80008,3125.9,3125.2,0.3]
[1642614190389,0.00227369,3125.7,3125.2,0.3]
[1642614190786,1.60029,3126.0,3125.1,1.89999]
[1642614190787,0.00170527,3125.6,3125.1,2.19999]
[1642614191186,0.00113685,3125.5,3125.1,2.19999]
[1642614191388,0.00113685,3125.5,3125.2,1.60012]
[1642614191640,2.96198118,3125.5,3124.9,0.00113684]
[1642614191841,0.13483,3125.6,3124.9,0.00113684]
[1642614192133,0.459,3125.4,3124.7,0.80027]
[1642614192537,0.459,3125.4,3124.8,0.00284212]
[1642614192935,0.459,3125.4,3124.8,2.11876803]
[1642614193135,0.00113685,3125.5,3125.0,0.80013]
[1642614193535,0.00113685,3125.5,3125.1,0.00113685]
[1642614194339,0.80021,3125.4,3125.1,0.00113685]
[1642614195141,0.80021,3125.4,3125.0,0.00170527]
[1642614196788,0.80021,3125.4,3125.0,0.80193527]
[1642614197284,0.80021,3125.4,3125.1,0.00113685]
[1642614197584,1.60168685,3125.5,3125.0,0.80186527]
[1642614197585,0.00113685,3125.5,3125.0,0.80186527]
[1642614197984,0.00113685,3125.5,3125.1,0.00113685]
[1642614200040,0.13483,3125.4,3125.1,0.00113685]
[1642614200238,5.8,3125.2,3125.1,0.00113685]
[1642614200437,5.8,3125.2,3124.7,0.80029]
[1642614200639,5.8,3125.2,3124.8,0.00284212]
[1642614200839,5.8,3125.2,3124.8,0.80307212]
[1642614201337,5.8,3125.2,3124.9,0.00227369]
[1642614202137,5.8,3125.2,3124.8,0.00284212]
[1642614203180,5.8,3125.2,3124.8,0.30284212]
[1642614203582,5.8,3125.2,3124.9,0.00227369]
[1642614203983,5.8,3125.2,3124.8,0.30284212]
[1642614204185,0.00113685,3125.5,3124.9,0.00227369]
[1642614204589,0.00113685,3125.5,3125.0,0.80016]
[1642614204987,0.00113685,3125.5,3125.1,0.30113685]
[1642614205185,0.00113685,3125.5,3125.3,1.50385061]
[1642614205585,0.00113685,3125.5,3125.3,2.90382001]
[1642614205786,12.78,3126.2,3125.3,1.3999694]
[1642614205986,14.71835104,3126.2,3125.6,0.79993]
[1642614206187,0.00341054,3126.1,3125.7,0.3]
[1642614206630,0.00284212,3126.0,3125.8,0.79993]
[1642614207031,0.00227369,3125.9,3125.7,1.89986]
[1642614207433,7.1482,3126.2,3125.7,1.89986]
[1642614207434,0.00170527,3125.8,3125.7,1.89986]
[1642614208540,0.00170527,3125.8,3125.7,3.5292771]
[1642614208742,0.00170527,3125.8,3125.7,6.49125828]
[1642614208938,0.00170527,3125.8,3125.7,3.5292771]
[1642614209338,5.5961,3126.7,3125.9,0.79975]
[1642614209540,5.5961,3126.7,3126.0,0.3]
[1642614209744,5.5961,3126.7,3126.2,1.50231273]
[1642614209745,0.00454739,3126.6,3126.2,1.50231273]
[1642614209938,0.00454739,3126.6,3126.2,1.80231273]
[1642614210137,1.3145814,3126.5,3126.2,2.10231273]
[1642614210390,0.00397896,3126.5,3126.2,2.90205273]
[1642614210591,11.3619,3127.1,3126.2,2.90205273]
[1642614210592,0.00341054,3126.4,3126.2,1.39974]
[1642614210790,0.00341054,3126.4,3126.2,1.09974]
[1642614210990,0.00284212,3126.3,3126.2,0.3]
[1642614211391,0.00284212,3126.3,3125.7,1.59986]
[1642614211591,0.8,3126.2,3125.7,1.59986]
[1642614211789,0.8,3126.2,3125.7,3.19973]
[1642614211790,0.00227369,3126.2,3125.7,3.19973]
[1642614211994,1.59989,3126.8,3125.7,3.19973]
[1642614211995,0.00170527,3126.1,3125.7,3.19973]
[1642614212394,0.00113685,3126.0,3125.7,3.19973]
[1642614212591,0.00113685,3126.0,3125.8,0.3]
[1642614212791,0.00397896,3126.5,3125.8,0.6]
[1642614212991,1.30799065,3126.4,3126.0,0.3]
[1642614213191,1.31140119,3126.4,3126.0,1.89982]
[1642614213392,1.31083277,3126.3,3126.0,1.89982]
[1642614213593,0.00284212,3126.3,3126.1,0.3]
[1642614213793,0.79993,3126.5,3126.1,0.3]
[1642614213794,0.00227369,3126.2,3126.1,0.3]
[1642614214032,0.00227369,3126.2,3126.1,1.09991]
[1642614214942,0.00227369,3126.2,3126.1,0.79991]
[1642614215142,0.00227369,3126.2,3126.0,1.89982]
[1642614215541,0.00170527,3126.1,3126.0,1.89982]
[1642614216438,0.00170527,3126.1,3126.0,0.3]
[1642614216641,0.00170527,3126.1,3125.8,0.3]
[1642614216840,0.80008,3126.0,3125.8,0.3]
[1642614217041,1.30821561,3125.9,3125.8,0.3]
[1642614217892,1.30821561,3125.9,3125.2,1.60026]
[1642614218092,0.8002,3125.8,3125.3,0.3]
[1642614218292,0.8002,3125.8,3125.3,0.30284212]
[1642614218293,1.30821561,3125.7,3125.3,0.30284212]
[1642614218491,2.68590107,3125.7,3125.4,0.0022737]
[1642614218695,6.74823287,3125.5,3125.4,0.0022737]
[1642614218893,11.40339486,3125.5,3125.4,0.0022737]
[1642614219194,10.20516199,3125.5,3125.4,0.0022737]
[1642614219595,6.85821561,3125.5,3125.4,0.0022737]
[1642614219796,7.65846561,3125.5,3125.4,0.0022737]
[1642614220195,2.10846561,3125.5,3125.4,0.0022737]
[1642614220796,2.10846561,3125.5,3125.2,0.80357054]
[1642614220797,1.30821561,3125.5,3125.2,0.80357054]
[1642614220996,1.30821561,3125.4,3125.3,0.3]
[1642614221198,3.00106584,3126.0,3125.3,0.30284212]
[1642614221199,2.30821561,3125.9,3125.3,0.30284212]
[1642614221396,2.30821561,3125.9,3125.5,0.80006]
[1642614221397,1.30821561,3125.8,3125.5,0.80006]
[1642614221846,4.35821561,3125.7,3125.6,0.00113685]
[1642614222443,4.35821561,3125.7,3125.6,0.30113685]
[1642614222748,4.35821561,3125.7,3125.6,0.00113685]
[1642614223144,4.35821561,3125.7,3125.5,0.80009]
[1642614223346,1.30821561,3125.6,3125.5,0.80009]
[1642614223545,1.30821561,3125.6,3125.3,0.3]
[1642614223946,1.30821561,3125.6,3125.4,0.0022737]
[1642614225392,9.08612043,3125.5,3125.4,0.0022737]
[1642614225589,11.39433604,3125.5,3125.1,0.00397897]
[1642614225787,1.30821561,3125.4,3124.3,0.00852635]
[1642614225989,0.80029,3125.2,3124.4,2.92909857]
[1642614226289,0.80029,3125.2,3124.5,1.32799015]
[1642614226491,5.6586,3125.6,3124.6,0.80022]
[1642614226690,1.3145968,3125.5,3124.6,3.72782972]
[1642614226890,1.3145968,3125.5,3124.7,1.9268533]
[1642614227090,1.3145968,3125.5,3125.0,0.3]
[1642614227289,1.3145968,3125.5,3125.1,0.8001]
[1642614227490,1.3145968,3125.5,3125.1,0.80407897]
[1642614227697,1.3145968,3125.5,3125.2,0.00341054]
[1642614227909,5.6586,3125.6,3125.2,0.00341054]
[1642614228096,5.6586,3125.6,3125.2,1.60350054]
[1642614228493,0.00113685,3126.0,3125.3,0.30284212]
[1642614228697,1.31854733,3126.0,3125.4,1.54042176]
[1642614229141,1.31854733,3126.0,3125.5,0.00170527]
[1642614229945,1.31854733,3126.0,3125.5,1.60160527]
[1642614230143,1.31854733,3126.0,3125.6,2.6998318]
[1642614230344,1.31854733,3126.0,3125.6,1.90102685]
[1642614231143,1.31854733,3126.0,3125.6,2.20102685]
[1642614231544,1.31854733,3126.0,3125.7,0.79997]
[1642614231746,1.31854733,3126.0,3125.7,1.5999]
[1642614231947,1.31854733,3126.0,3125.8,0.3]
[1642614232147,1.31854733,3126.0,3125.8,0.6]
[1642614232547,0.00113685,3126.0,3125.8,0.6]
[1642614232784,0.00113685,3126.0,3125.8,1.3998849]
[1642614233188,0.00113685,3126.0,3125.9,0.3]
[1642614234189,0.00113685,3126.0,3125.8,0.6]
[1642614235292,1.32299806,3126.0,3125.8,0.6]
[1642614235492,1.32186121,3125.9,3125.8,0.3]
[1642614235894,1.32186121,3125.9,3125.7,0.3]
[1642614235895,0.8001,3125.9,3125.7,0.3]
[1642614236091,0.8001,3125.9,3125.6,0.00113685]
[1642614236292,1.32186121,3125.8,3125.6,0.00113685]
[1642614236537,0.00113685,3126.0,3125.6,0.00113685]
[1642614236938,1.32256431,3126.0,3125.6,0.00113685]
[1642614237139,0.80009,3125.9,3125.6,0.00113685]
[1642614237338,0.80009,3125.9,3125.6,0.30113685]
[1642614237339,1.32142746,3125.8,3125.6,0.30113685]
[1642614237540,1.32142746,3125.8,3125.5,1.32060601]
[1642614237541,1.32142746,3125.8,3125.5,0.80174527]
[1642614237743,0.00113685,3126.0,3125.5,0.80174527]
[1642614237947,0.00113685,3126.0,3125.6,0.00113685]
[1642614239451,0.00113685,3126.0,3125.6,1.32366179]
[1642614239750,0.00113685,3126.0,3125.7,0.79994]
[1642614240149,0.00113685,3126.0,3125.7,1.79994]
[1642614241013,0.00113685,3126.0,3125.7,0.79994]
[1642614241407,0.00113685,3126.0,3125.7,1.59979]
[1642614241914,0.00113685,3126.0,3125.8,0.6]
[1642614243014,0.00113685,3126.0,3125.7,0.3]
[1642614243214,0.00113685,3126.0,3125.7,0.79997]
[1642614243417,0.00113685,3126.0,3125.8,0.79986]
[1642614244039,0.00113685,3126.0,3125.8,2.39957]
[1642614244441,0.00113685,3126.0,3125.8,2.69957]
[1642614244640,0.00113685,3126.0,3125.8,2.99957]
[1642614244940,0.00113685,3126.0,3125.8,5.17789213]
[1642614246245,0.00113685,3126.0,3125.9,1.32307402]